bitfinex-derivatives/quotes_ETHF0:USTF0_20250828
["timestamp","ask_amount","ask_price","bid_price","bid_amount"]
[1756339521376,1.6357,4515.9,4515.4,3.2078]
[1756339521582,0.283,4515.4,4514.9,4.0603]
[1756339521785,1.0917,4515.2,4515.0,0.5809]
[1756339522084,1.0917,4515.2,4515.1,0.8525]
[1756339522283,1.0917,4515.2,4515.1,2.2211]
[1756339522782,1.0917,4515.2,4515.1,0.8525]
[1756339523082,16.942,4515.3,4514.9,3.2078]
[1756339523281,0.283,4515.1,4514.4,0.8525]
[1756339523583,0.8087,4515.0,4514.4,0.8525]
[1756339523782,0.8087,4515.0,4514.4,1.6402]
[1756339523985,0.8087,4515.0,4514.4,2.2211]
[1756339524181,1.6357,4515.2,4514.4,0.7877]
[1756339524483,0.283,4515.1,4514.5,0.8525]
[1756339524881,0.827,4515.2,4514.5,0.8525]
[1756339525073,20.1498,4515.3,4514.3,0.5809]
[1756339525280,1.0917,4514.2,4513.7,3.2078]
[1756339525480,1.9187,4513.8,4513.7,3.2078]
[1756339525782,21.166,4513.8,4513.7,5.4289]
[1756339526086,4.2995,4514.3,4513.7,3.2078]
[1756339526289,21.166,4514.2,4513.9,0.8525]
[1756339526586,4.2995,4514.3,4514.2,0.8525]
[1756339526781,1.0917,4514.2,4513.7,3.2078]
[1756339526987,1.0917,4514.2,4513.8,2.2211]
[1756339527488,1.0917,4514.2,4513.8,1.3686]
[1756339527686,1.0917,4514.2,4514.1,0.8525]
[1756339527687,0.283,4514.2,4514.1,0.8525]
[1756339527888,1.0917,4514.2,4514.1,0.8525]
[1756339528087,22.2597,4514.2,4514.1,0.8525]
[1756339528385,22.2597,4514.2,4514.1,2.2211]
[1756339528583,0.827,4514.1,4513.7,3.2078]
[1756339528783,1.6357,4513.8,4513.2,3.2078]
[1756339528989,0.827,4513.5,4513.3,0.8525]
[1756339529187,22.2597,4513.4,4513.3,1.4334]
[1756339529690,1.0917,4513.4,4513.3,1.4334]
[1756339529888,1.9187,4512.9,4512.2,3.2078]
[1756339530088,21.168,4512.8,4512.2,3.2078]
[1756339530483,1.0917,4513.0,4512.3,2.61993]
[1756339530683,21.169,4512.9,4512.3,1.76743]
[1756339530886,21.169,4512.9,4512.4,0.8525]
[1756339531082,0.827,4513.2,4512.3,2.2211]
[1756339531286,9.591,4513.4,4512.9,2.2211]
[1756339531489,9.591,4513.4,4513.2,0.39875]
[1756339531686,9.591,4513.4,4513.3,2.2211]
[1756339531886,3.2078,4513.8,4512.8,3.2078]
[1756339531887,3.2078,4513.8,4513.4,0.39874]
[1756339532087,21.17,4513.7,4513.6,2.1676]
[1756339532593,21.9568,4514.0,4513.9,1.3653]
[1756339532795,21.9568,4514.0,4513.9,2.1676]
[1756339533094,21.171,4514.0,4513.9,2.1676]
[1756339533492,21.9568,4514.0,4513.9,2.1676]
[1756339534095,22.2242,4514.0,4513.9,2.1676]
[1756339534290,1.0952,4513.7,4513.5,0.7963]
[1756339534492,21.171,4514.0,4513.4,3.2078]
[1756339534787,21.172,4514.2,4513.3,0.39874]
[1756339535094,3.2078,4514.9,4514.4,2.1676]
[1756339535298,22.2252,4515.1,4514.6,2.1676]
[1756339535498,0.7858,4515.8,4515.2,2.1676]
[1756339535794,0.8278,4515.9,4515.1,1.3653]
[1756339535998,0.2674,4515.8,4515.1,1.3653]
[1756339536193,21.172,4516.0,4515.0,3.2078]
[1756339536394,0.2674,4515.8,4515.1,0.7963]
[1756339536691,0.7858,4515.7,4515.1,2.1676]
[1756339536896,0.7858,4515.7,4515.0,3.2078]
[1756339537098,0.7858,4515.7,4515.1,2.1676]
[1756339537298,21.172,4515.6,4515.4,0.8023]
[1756339537497,22.2672,4515.6,4515.5,0.7963]
[1756339537797,21.172,4515.6,4515.0,3.2078]
[1756339537988,0.7858,4515.3,4515.2,2.1676]
[1756339538194,1.0532,4515.3,4515.2,1.3653]
[1756339538397,0.7858,4515.3,4515.2,2.1676]
[1756339538586,1.0532,4515.3,4515.2,2.1676]
[1756339538791,1.881,4515.3,4515.2,0.7963]
[1756339538991,1.0532,4515.3,4515.2,0.7963]
[1756339539393,21.171,4515.4,4515.0,3.2078]
[1756339539695,21.17,4515.6,4515.3,0.7963]
[1756339539897,21.17,4515.6,4515.1,2.1676]
[1756339540097,1.0532,4515.5,4515.2,2.1676]
[1756339540298,0.8278,4515.5,4515.3,1.3653]
[1756339540487,1.881,4515.4,4515.3,0.7963]
[1756339540692,1.881,4515.1,4515.0,3.2078]
[1756339540895,23.051,4515.1,4515.0,3.2078]
[1756339541194,1.881,4515.0,4514.4,3.2078]
[1756339541399,0.8278,4515.0,4514.4,3.2078]
[1756339541598,1.881,4515.0,4514.4,4.5731]
[1756339541798,1.0532,4514.9,4514.4,4.5731]
[1756339541998,1.881,4514.5,4514.4,3.2078]
[1756339542195,23.05,4514.5,4514.4,3.2078]
[1756339542604,23.05,4514.5,4512.9,0.8023]
[1756339542605,0.8278,4514.1,4512.9,0.8023]
[1756339542799,21.169,4514.0,4512.6,4.5731]
[1756339542999,1.881,4513.9,4512.6,4.5731]
[1756339543202,1.881,4513.8,4512.6,4.5731]
[1756339543405,0.8278,4513.9,4512.6,3.2078]
[1756339543707,3.2078,4514.2,4513.2,2.1676]
[1756339544010,10.766,4514.1,4513.2,2.1676]
[1756339544203,1.0952,4514.0,4513.2,2.1676]
[1756339544408,0.7858,4513.8,4513.2,2.1676]
[1756339544611,0.8278,4514.0,4513.2,1.5986]
[1756339544912,1.0532,4513.9,4513.2,1.5986]
[1756339545203,1.0532,4513.4,4512.6,4.0041]
[1756339545410,21.17,4513.3,4512.6,3.2078]
[1756339545606,3.2078,4513.1,4512.5,0.7963]
[1756339545808,1.881,4513.0,4512.0,4.8064]
[1756339546009,3.2078,4512.6,4512.0,3.2078]
[1756339546308,21.171,4512.5,4512.0,3.2078]
[1756339546510,1.881,4512.4,4512.0,3.2078]
[1756339547010,21.171,4512.5,4512.0,3.2078]
[1756339547211,1.881,4512.4,4512.0,3.2078]
[1756339547709,21.171,4512.5,4512.0,3.2078]
[1756339547910,1.881,4512.4,4512.0,3.2078]
[1756339548413,3.2078,4512.6,4512.0,3.2078]
[1756339548612,21.172,4512.5,4512.0,3.2078]
[1756339548812,0.8278,4512.4,4512.1,0.7963]
[1756339549016,1.0532,4512.2,4512.1,0.7963]
[1756339549515,1.0532,4512.1,4512.0,4.0041]
[1756339549716,1.0532,4512.1,4512.0,4.5731]
[1756339549913,22.2262,4512.1,4512.0,5.3754]
[1756339550217,21.173,4512.1,4512.0,5.3754]
[1756339550516,0.2674,4512.4,4512.0,4.5791]
[1756339550708,21.174,4512.3,4512.1,1.3713]
[1756339550907,3.2078,4512.6,4512.1,1.3713]
[1756339551108,21.175,4513.2,4512.7,1.2011]
[1756339551308,21.175,4513.3,4513.2,1.3713]
[1756339551508,21.175,4513.4,4513.3,1.3713]
[1756339551905,3.2078,4514.1,4513.4,0.569]
[1756339552110,21.175,4514.0,4513.2,1.3713]
[1756339552311,21.175,4514.0,4513.3,1.3713]
[1756339552513,21.175,4514.0,4513.4,0.569]
[1756339552711,21.175,4514.0,4513.5,0.8023]
[1756339552921,21.175,4513.9,4513.1,3.2078]
[1756339553116,21.175,4513.9,4513.3,0.569]
[1756339553324,3.2078,4514.1,4513.5,0.569]
[1756339553523,21.175,4514.2,4513.7,0.8023]
[1756339553716,21.175,4514.2,4513.7,0.569]
[1756339554019,21.4424,4514.2,4513.9,0.569]
[1756339554220,21.175,4514.2,4514.0,0.8023]
[1756339554418,1.0532,4514.1,4513.7,0.569]
[1756339554618,0.7858,4514.0,4513.6,3.2078]
[1756339554820,1.0532,4514.1,4513.6,3.2078]
[1756339555124,21.175,4514.2,4513.6,3.7768]
[1756339555125,1.0532,4513.7,4513.6,3.7768]
[1756339555320,21.174,4513.8,4513.6,3.2078]
[1756339555529,21.174,4513.8,4513.7,1.3713]
[1756339555725,1.0532,4514.4,4513.6,3.2078]
[1756339555921,21.173,4514.3,4513.8,0.8023]
[1756339556120,21.173,4514.3,4513.9,0.569]
[1756339556320,21.173,4514.3,4514.2,1.3713]
[1756339556520,21.9588,4514.3,4514.2,1.3713]
[1756339556727,22.2262,4514.3,4514.2,0.569]
[1756339557022,21.173,4514.3,4514.2,1.3713]
[1756339557229,21.172,4514.3,4513.6,3.60652]
[1756339557525,1.0532,4514.2,4513.7,1.3713]
[1756339557723,0.7858,4514.1,4513.7,0.569]
[1756339557927,1.0532,4513.8,4513.6,3.2078]
[1756339558124,22.2252,4513.7,4513.6,3.2078]
[1756339558531,35.1208,4514.5,4513.6,3.2078]
[1756339558831,21.172,4514.4,4514.0,0.569]
[1756339559123,21.172,4514.4,4513.9,0.8023]
[1756339559323,0.7858,4514.3,4513.6,3.2078]
[1756339559521,21.172,4514.4,4513.6,3.2078]
[1756339559722,1.0532,4513.7,4513.6,3.2078]
[1756339559923,22.2242,4513.7,4513.6,3.2078]
[1756339561331,22.2242,4513.7,4513.0,0.569]
[1756339562232,21.171,4513.7,4513.6,1.3522]
[1756339562430,21.171,4514.1,4513.6,1.3522]
[1756339562626,21.171,4514.1,4514.0,4.56]
[1756339562821,31.913,4514.5,4514.0,3.2078]
[1756339563121,21.17,4514.4,4514.3,1.3522]
[1756339563524,1.0657,4515.0,4514.4,1.3522]
[1756339563721,1.0657,4515.0,4513.8,1.1762751]
[1756339563722,4.0268,4515.5,4514.7,0.39862]
[1756339563926,4.2735,4515.5,4514.7,0.39862]
[1756339564122,21.17,4515.4,4514.7,0.39862]
[1756339564323,1.0657,4515.3,4514.5,4.95864]
[1756339564528,1.0657,4515.3,4514.6,0.39863]
[1756339564732,1.0657,4515.3,4514.5,4.56]
[1756339564928,31.911,4516.0,4514.9,0.3986]
[1756339565229,31.911,4516.0,4515.0,4.56]
[1756339565230,1.0657,4515.9,4515.0,4.56]
[1756339565537,1.0657,4515.7,4515.0,4.56]
[1756339566634,1.0657,4515.7,4515.2,0.39858]
[1756339566635,21.168,4515.6,4515.2,0.39858]
[1756339566830,1.0657,4515.7,4515.2,0.39858]
[1756339567031,21.168,4515.6,4515.4,1.3522]
[1756339567234,21.168,4515.6,4515.3,0.39857]
[1756339567428,21.168,4515.6,4515.4,0.39856]
[1756339567625,21.168,4515.6,4515.5,1.3522]
[1756339567823,21.168,4515.6,4514.5,0.30655343]
[1756339568030,3.2078,4515.0,4513.6,3.7465]
[1756339568333,0.819,4514.8,4514.2,0.5387]
[1756339568522,16.376,4514.9,4514.6,3.2078]
[1756339568728,0.819,4515.3,4514.7,0.5387]
[1756339569033,21.167,4514.8,4514.7,0.5387]
[1756339569534,21.986,4514.8,4514.7,0.5387]
[1756339569837,0.819,4514.7,4514.6,3.2078]
[1756339570033,0.819,4514.7,4514.6,3.7465]
[1756339570227,21.166,4514.8,4514.7,1.3522]
[1756339570428,21.985,4514.8,4514.6,3.2078]
[1756339570737,0.819,4514.7,4514.6,3.2078]
[1756339570931,0.819,4514.7,4514.6,3.7465]
[1756339571429,0.819,4514.7,4514.6,3.2078]
[1756339572530,0.819,4514.7,4514.6,3.7465]
[1756339572937,0.819,4514.7,4514.6,4.56]
[1756339573436,0.819,4514.7,4514.1,3.2078]
[1756339573633,21.166,4514.8,4514.1,3.2078]
[1756339574236,0.819,4514.7,4514.1,3.2078]
[1756339575135,3.2078,4514.4,4513.4,3.2078]
[1756339575834,0.819,4514.3,4513.4,3.2078]
[1756339576637,3.2078,4514.4,4513.4,3.60653]
[1756339577137,0.819,4514.3,4513.4,3.2078]
[1756339577438,0.819,4514.3,4513.6,0.39872]
[1756339577936,0.819,4513.8,4512.9,3.60658]
[1756339578129,17.296,4513.7,4512.9,3.2078]
[1756339578331,3.2078,4513.9,4512.9,3.2078]
[1756339578535,0.819,4513.8,4513.0,0.8135]
[1756339578838,0.819,4513.8,4513.1,0.5387]
[1756339579038,0.819,4513.8,4513.4,0.39874]
[1756339579242,11.796,4513.7,4513.4,0.93744]
[1756339579536,0.819,4513.6,4513.4,0.93744]
[1756339579941,11.796,4513.7,4513.4,0.5387]
[1756339580537,0.819,4513.6,4513.4,0.5387]
[1756339581337,11.796,4513.7,4513.4,0.5387]
[1756339581642,0.819,4513.6,4512.9,3.2078]
[1756339582135,11.796,4513.7,4512.9,3.2078]
[1756339582334,1.6536,4513.6,4512.9,4.0477]
[1756339582533,0.8346,4513.6,4512.9,4.0477]
[1756339582938,0.819,4513.5,4513.0,0.39877]
[1756339583142,20.768,4513.6,4513.3,0.8399]
[1756339583344,0.819,4513.5,4513.4,2.1921]
[1756339583642,1.6536,4513.5,4513.4,0.8399]
[1756339583843,1.8987,4513.1,4513.0,1.3786]
[1756339584036,2.7177,4513.1,4513.0,1.7407]
[1756339584341,2.7177,4513.1,4513.0,1.7581]
[1756339584542,20.768,4513.6,4512.9,3.2078]
[1756339584543,2.7177,4513.0,4512.9,3.2078]
[1756339585239,23.0481,4513.0,4512.9,6.8351]
[1756339585944,21.6839,4513.0,4512.9,6.8351]
[1756339586246,23.8817,4513.0,4512.9,4.9659]
[1756339586444,23.8817,4513.0,4512.9,3.2078]
[1756339586942,23.0471,4513.0,4512.9,6.8351]
[1756339587536,23.8817,4513.0,4512.9,3.2078]
[1756339588141,2.7177,4512.2,4512.1,3.2078]
[1756339588345,23.8827,4512.2,4512.1,3.2078]
[1756339588541,23.0637,4512.2,4511.9,0.8135]
[1756339588744,1.8831,4512.1,4512.0,2.2968]
[1756339589335,1.6536,4512.0,4511.7,0.5387]
[1756339589643,31.91,4513.3,4511.9,1.3786]
[1756339589644,1.6536,4512.9,4511.9,1.3786]
[1756339589842,21.164,4512.9,4512.8,5.3999]
[1756339590342,53.074,4513.3,4512.9,1.3786]
[1756339590545,53.074,4513.3,4513.0,1.3786]
[1756339590740,53.074,4513.3,4512.8,3.2078]
[1756339590947,53.074,4513.3,4512.9,0.39878]
[1756339591263,31.91,4513.3,4513.0,2.1921]
[1756339591545,21.165,4513.2,4513.0,2.1921]
[1756339591747,21.165,4513.2,4512.9,0.39878]
[1756339591948,21.165,4513.2,4513.0,0.39877]
[1756339592147,21.165,4513.2,4513.1,2.1202]
[1756339592344,31.91,4513.3,4513.1,2.51896]
[1756339592647,31.91,4513.3,4513.2,2.1202]
[1756339592846,53.074,4513.3,4513.2,2.1202]
[1756339593749,31.91,4513.3,4513.2,3.5132]
[1756339593938,53.6163,4513.3,4513.2,3.5132]
[1756339594141,31.91,4513.3,4513.2,3.5132]
[1756339594340,0.8067,4514.9,4513.5,0.99683]
[1756339594548,0.8067,4514.8,4514.6,2.1202]
[1756339594850,0.8067,4514.8,4514.4,3.2078]
[1756339594851,21.9697,4514.9,4514.4,3.2078]
[1756339595052,21.9697,4514.9,4514.5,2.1202]
[1756339595253,0.8067,4514.8,4514.6,2.1202]
[1756339595551,0.8067,4514.6,4514.4,4.0104]
[1756339595748,0.8067,4514.5,4514.4,2.1202]
[1756339596444,0.8067,4514.5,4514.4,1.3294]
[1756339596847,0.8067,4514.5,4514.4,2.1202]
[1756339597750,21.9657,4514.5,4514.4,2.1202]
[1756339598853,23.0666,4514.5,4514.4,2.9879]
[1756339599956,21.7003,4514.5,4514.4,3.5132]
[1756339600450,21.7003,4514.5,4514.4,3.91185]
[1756339600649,21.157,4514.5,4514.4,3.91185]
[1756339600848,0.8284,4515.7,4514.6,1.3176]
[1756339601057,13.3427,4515.6,4515.4,1.3294]
[1756339601250,13.3427,4515.6,4515.5,2.1202]
[1756339601954,14.1711,4515.6,4515.5,0.8026]
[1756339602354,1.6351,4515.5,4515.2,1.3294]
[1756339602555,0.8284,4515.5,4515.3,0.8026]
[1756339602746,1.6351,4515.4,4515.3,0.8026]
[1756339603154,0.8067,4515.1,4514.6,4.93583]
[1756339603354,21.154,4515.0,4514.6,3.60643]
[1756339603556,0.8067,4514.9,4514.8,0.8026]
[1756339603753,0.8067,4514.9,4514.8,1.3294]
[1756339603950,0.8067,4514.9,4514.8,2.1202]
[1756339604160,21.154,4515.0,4514.9,0.39861]
[1756339604454,21.152,4515.1,4515.0,1.5934]
[1756339604655,0.8067,4515.0,4514.7,0.7908]
[1756339604860,21.152,4515.1,4514.7,0.8026]
[1756339605054,21.152,4515.1,4514.6,3.2078]
[1756339605656,1.6351,4514.7,4514.6,3.2078]
[1756339606059,22.7851,4514.7,4514.6,4.0104]
[1756339607763,22.7851,4514.7,4514.6,0.8026]
[1756339607964,0.8284,4514.6,4514.5,0.8026]
[1756339608264,0.8067,4514.6,4514.5,2.1202]
[1756339608961,21.148,4514.6,4514.5,3.5132]
[1756339609151,1.1009,4515.1,4515.0,1.9198]
[1756339609359,23.0556,4515.1,4515.0,3.5132]
[1756339609657,1.1009,4514.4,4514.3,2.1956]
[1756339609862,1.9076,4514.4,4514.3,2.7224]
[1756339610258,1.9076,4514.4,4514.3,3.5132]
[1756339611068,1.9076,4514.4,4514.3,2.7224]
[1756339611369,2.736,4514.4,4514.3,2.7224]
[1756339612763,2.736,4514.4,4514.1,0.39868]
[1756339613061,2.736,4514.2,4514.1,0.3519]
[1756339613264,1.1009,4514.0,4513.9,3.2078]
[1756339613467,2.736,4514.0,4513.9,3.2078]
[1756339613773,2.736,4514.0,4513.9,4.8781]
[1756339614066,2.736,4514.0,4513.9,5.4049]
[1756339614466,1.9076,4514.0,4513.9,6.721]
[1756339614867,1.9076,4515.4,4515.3,2.4706]
[1756339615167,0.8067,4515.6,4515.4,0.39857]
[1756339615372,0.8067,4515.6,4515.5,1.72795]
[1756339615672,0.8067,4515.6,4515.5,2.51875]
[1756339616463,21.143,4515.8,4515.6,0.39854]
[1756339616671,1.6351,4516.1,4516.0,1.72791]
[1756339616869,21.9487,4516.1,4516.0,2.51871]
[1756339617567,0.8284,4516.0,4515.7,1.3294]
[1756339617768,1.6351,4516.0,4515.4,0.39856]
[1756339617968,1.6351,4516.0,4515.2,3.2078]
[1756339618169,0.8067,4515.9,4515.2,4.5372]
[1756339618369,0.8067,4515.9,4515.3,0.7908]
[1756339618564,24.3498,4516.1,4515.2,3.2078]
[1756339618768,1.1009,4515.4,4515.3,1.3294]
[1756339618967,23.876,4515.4,4515.3,1.6813]
[1756339619266,23.0476,4515.4,4515.3,3.91177]
[1756339619667,23.0476,4515.4,4515.3,3.5132]
[1756339620271,23.0476,4515.4,4514.7,1.58348332]
[1756339620272,1.6351,4514.8,4514.7,1.58348332]
[1756339620469,1.9076,4514.5,4514.4,1.6813]
[1756339620663,1.9076,4514.5,4514.4,2.7224]
[1756339620868,1.9076,4514.5,4514.4,3.5132]
[1756339621368,0.5433,4514.3,4514.2,0.8026]
[1756339621569,22.487,4514.3,4514.2,3.5132]
[1756339621772,23.0446,4514.3,4514.2,3.5132]
[1756339622174,21.6803,4514.3,4514.2,3.5132]
[1756339622774,21.6803,4514.3,4514.0,3.2078]
[1756339622775,23.79,4514.3,4514.0,3.2078]
[1756339623075,1.0651,4513.8,4513.7,4.00158332]
[1756339623369,1.0651,4513.8,4513.5,3.2078]
[1756339623370,1.325,4513.6,4513.5,2.73298332]
[1756339623673,1.8574,4513.6,4513.5,3.75978332]
[1756339623872,1.8574,4513.6,4513.5,2.7085]
[1756339624075,1.8574,4513.6,4513.5,3.4697]
[1756339624274,1.8574,4513.6,4513.5,5.05318332]
[1756339624569,1.8574,4513.6,4513.5,3.4697]
[1756339625274,2.6421,4513.6,4513.5,1.1495]
[1756339625478,1.8574,4513.2,4513.1,4.25388332]
[1756339625670,2.6421,4513.2,4513.1,2.7085]
[1756339625973,1.8574,4513.2,4513.1,3.4697]
[1756339626776,2.6421,4513.2,4513.1,2.7085]
[1756339626975,2.6421,4513.2,4513.1,1.6569]
[1756339627572,31.905,4514.6,4512.3,0.7612]
[1756339627573,2.6421,4512.8,4512.3,0.7612]
[1756339627777,6.3434,4512.7,4512.6,2.7085]
[1756339627977,11.7304,4512.7,4512.6,3.4697]
[1756339628569,12.5151,4512.7,4512.6,1.6569]
[1756339628781,1.8574,4512.3,4512.2,3.4697]
[1756339629076,3.2078,4513.5,4513.4,3.4697]
[1756339629273,3.2078,4513.5,4512.1,1.58348332]
[1756339629274,11.663,4513.5,4512.8,1.3187]
[1756339629477,11.663,4513.5,4512.7,0.7612]
[1756339629478,11.663,4513.5,4512.7,1.58768421]
[1756339629668,1.577,4513.4,4512.9,0.91818]
[1756339629873,0.7847,4513.5,4513.2,0.39876]
[1756339630073,12.4533,4513.4,4513.3,2.0799]
[1756339630272,11.661,4513.4,4513.3,2.0799]
[1756339630581,21.136,4513.6,4513.5,2.47863]
[1756339630874,0.7923,4514.4,4513.5,3.2078]
[1756339631183,0.7923,4514.2,4514.0,0.7612]
[1756339631478,0.7923,4514.2,4514.1,2.0799]
[1756339632175,0.7923,4514.8,4514.5,2.0799]
[1756339632479,53.8323,4514.6,4514.5,2.0799]
[1756339634477,53.038,4514.6,4514.5,2.0799]
[1756339634678,21.133,4514.6,4514.5,2.0799]
[1756339634982,21.133,4515.2,4514.8,0.5194]
[1756339635181,21.133,4515.2,4515.0,0.7612]
[1756339635372,0.7923,4515.6,4515.4,0.39857]
[1756339635576,0.7923,4515.6,4515.5,2.0799]
[1756339635772,21.133,4515.6,4515.2,1.3187]
[1756339635976,0.7923,4515.4,4515.3,2.0799]
[1756339636381,1.577,4515.5,4515.1,3.2078]
[1756339636978,21.132,4515.4,4515.1,3.60639]
[1756339637183,0.7923,4515.3,4515.2,1.3187]
[1756339637475,21.132,4515.4,4515.1,3.2078]
[1756339637681,21.13,4515.3,4515.1,3.2078]
[1756339637879,1.577,4515.2,4515.1,4.0071]
[1756339638073,0.7923,4515.2,4515.1,5.2877]
[1756339638281,0.7923,4515.8,4515.2,0.7993]
[1756339638481,21.129,4515.7,4515.1,3.2078]
[1756339638681,1.577,4515.5,4515.1,3.2078]
[1756339638885,21.129,4515.7,4515.1,3.2078]
[1756339639085,0.7923,4515.5,4515.1,3.2078]
[1756339639285,0.7847,4515.2,4515.1,3.2078]
[1756339639582,22.705,4515.2,4515.1,3.2078]
[1756339640786,22.705,4515.2,4515.1,4.0071]
[1756339640990,22.704,4515.2,4515.1,4.0071]
[1756339641284,22.704,4515.2,4515.1,3.2078]
[1756339643079,21.127,4515.2,4514.9,0.5194]
[1756339643280,1.577,4515.1,4515.0,0.7993]
[1756339643793,2.6421,4515.1,4515.0,1.1495]
[1756339644789,22.9804,4515.1,4515.0,3.4697]
[1756339646383,1.8574,4515.6,4515.5,2.9623]
[1756339646687,22.9784,4515.6,4515.5,3.4697]
[1756339646888,23.7631,4515.6,4515.5,3.4697]
[1756339647188,21.121,4515.6,4515.5,1.78836]
[1756339647587,0.7923,4516.3,4516.0,1.3898]
[1756339647886,21.12,4516.1,4516.0,3.86821]
[1756339648684,22.9774,4516.1,4516.0,3.86821]
[1756339649776,22.1851,4516.1,4516.0,3.86821]
[1756339650588,21.12,4516.1,4516.0,3.86821]
[1756339650992,31.909,4516.4,4516.2,0.3985]
[1756339651300,3.2078,4516.7,4516.2,1.3898]
[1756339651492,2.6421,4517.2,4517.1,2.7085]
[1756339652288,4.0066,4517.7,4517.1,2.0422]
[1756339652492,2.5589,4516.9,4516.8,3.2078]
[1756339652890,2.5589,4516.9,4516.6,0.39846]
[1756339652891,4.0,4516.9,4516.0,4.3352]
[1756339653084,0.5284,4516.1,4516.0,6.6181]
[1756339653289,7.918,4516.2,4516.1,3.80881]
[1756339653491,2.5589,4516.9,4516.8,2.1763]
[1756339653886,15.8439,4516.9,4516.8,2.1763]
[1756339654287,15.8439,4516.9,4516.8,1.6647]
[1756339654487,21.11,4516.9,4516.8,3.4103]
[1756339654697,22.1286,4516.9,4516.8,3.80874]
[1756339654898,3.2078,4517.7,4517.1,3.80871]
[1756339654899,22.1286,4517.2,4517.1,3.80871]
[1756339655190,1.7601,4517.2,4517.1,3.80871]
[1756339655387,1.0186,4518.0,4517.9,1.42]
[1756339655698,1.7601,4518.0,4517.9,3.4103]
[1756339656485,1.0186,4518.0,4517.9,2.6868]
[1756339656689,1.0186,4518.4,4518.3,3.80861]
[1756339656895,1.7601,4518.4,4518.3,3.4103]
[1756339657090,2.5589,4518.4,4518.3,2.6868]
[1756339657389,14.3321,4518.8,4518.7,3.4103]
[1756339657585,14.3321,4518.8,4518.7,3.08508]
[1756339657898,14.3321,4518.8,4518.7,3.80858]
[1756339658387,0.7415,4519.6,4518.7,4.0]
[1756339658695,0.7415,4519.6,4519.3,1.9903]
[1756339658882,0.7415,4519.5,4519.3,1.63332]
[1756339659086,0.7415,4519.6,4519.4,0.7552]
[1756339659294,1.5403,4519.5,4519.4,0.7552]
[1756339659594,24.3118,4519.7,4519.6,1.2668]
[1756339660195,25.0533,4519.7,4519.6,1.2668]
[1756339660391,25.8521,4519.7,4519.1,3.963]
[1756339660597,24.3118,4519.7,4519.1,3.963]
[1756339660991,24.3118,4519.7,4518.7,0.7552]
[1756339660992,1.5403,4519.6,4518.7,0.7552]
[1756339661297,1.76158,4519.6,4518.7,0.7552]
[1756339661499,0.22128,4519.6,4518.6,3.2078]
[1756339661892,1.5403,4519.5,4518.6,3.2078]
[1756339662097,24.3118,4519.7,4518.6,3.2078]
[1756339662296,0.22128,4519.6,4518.6,3.2078]
[1756339662493,1.5403,4519.5,4518.6,3.2078]
[1756339662698,24.3118,4519.7,4518.6,3.2078]
[1756339662889,0.22128,4519.6,4518.6,3.2078]
[1756339663093,1.5403,4519.5,4518.6,3.2078]
[1756339663395,24.3118,4519.7,4518.6,3.963]
[1756339663586,0.22128,4519.6,4518.6,3.963]
[1756339664099,0.7415,4519.4,4518.8,0.7552]
[1756339664295,0.7415,4519.4,4519.0,1.2668]
[1756339664504,1.7601,4519.4,4519.3,2.1763]
[1756339664800,23.6529,4519.4,4518.9,0.5116]
[1756339664996,21.094,4519.4,4518.8,1.1274]
[1756339665197,1.7601,4518.9,4518.8,1.1274]
[1756339665398,2.5589,4518.9,4518.8,1.1274]
[1756339665902,2.5589,4518.9,4518.8,2.1763]
[1756339666098,0.7988,4518.8,4518.6,3.2078]
[1756339666307,2.5589,4518.7,4518.6,5.383]
[1756339666502,1.7601,4518.7,4518.6,6.6181]
[1756339666899,2.5589,4518.7,4518.6,3.4103]
[1756339667499,1.0186,4518.2,4518.1,4.2556]
[1756339667702,1.0186,4518.2,4518.1,6.6181]
[1756339667703,0.5284,4518.2,4518.1,6.6181]
[1756339668196,1.7601,4518.2,4518.1,5.383]
[1756339668396,1.7601,4518.2,4518.1,6.6181]
[1756339668800,0.7415,4518.7,4518.1,4.6278]
[1756339668998,1.7601,4518.7,4518.6,3.4103]
[1756339669305,6.2951,4518.7,4518.6,3.4103]
[1756339669492,5.5536,4518.7,4518.6,3.4103]
[1756339669697,7.0939,4518.7,4518.6,2.6868]
[1756339669897,1.8174,4518.4,4518.3,1.1274]
[1756339670098,2.5589,4518.4,4518.3,1.1274]
[1756339670300,4.535,4518.7,4518.3,3.4103]
[1756339670502,5.8049,4518.7,4518.6,3.4103]
[1756339670705,6.2951,4518.7,4518.6,3.4103]
[1756339671002,6.2951,4518.7,4518.1,3.2078]
[1756339671208,2.5589,4518.2,4518.1,3.2078]
[1756339671803,1.7601,4518.2,4518.1,6.6181]
[1756339672001,9.786,4518.7,4518.6,2.873]
[1756339672206,11.5461,4518.7,4518.6,3.4103]
[1756339672708,12.3449,4518.7,4518.6,0.8827]
[1756339672897,0.7415,4518.6,4518.2,1.2668]
[1756339673104,0.7415,4518.6,4518.1,3.9313]